[Event "Klass I-IV 2025"]
[Site "Uppsala, Sweden"]
[Date "2025.07.04"]
[Round "5.3"]
[White "Andersen, Peter"]
[Black "Olsson, Magnus"]
[Result "1/2-1/2"]
[TimeControl "90 min for 40 move + 30 min with an increment of 30 sec starting move 1"]
[WhiteFideId "1726420"]
[BlackFideId "1718568"]
[WhiteElo "1721"]
[BlackElo "1742"]

1. e4 {[%clk 01:29:51]} {[%emt 00:01:08]} d5 {[%clk 01:29:56]} {[%emt
00:01:05]} 2. exd5 {[%clk 01:25:21]} {[%emt 00:04:48]} Qxd5 {[%clk 01:30:22]}
{[%emt 00:00:16]} 3. Nc3 {[%clk 01:25:29]} {[%emt 00:00:22]} Qa5 {[%clk
01:30:50]} {[%emt 00:00:01]} 4. Nf3 {[%clk 01:22:33]} {[%emt 00:03:26]} Nf6
{[%clk 01:30:54]} {[%emt 00:00:27]} 5. Be2 {[%clk 01:21:41]} {[%emt 00:01:21]}
c6 {[%clk 01:30:49]} {[%emt 00:00:35]} 6. O-O {[%clk 01:20:07]} {[%emt
00:02:04]} Bg4 {[%clk 01:29:26]} {[%emt 00:01:54]} 7. d4 {[%clk 01:19:23]}
{[%emt 00:01:13]} e6 {[%clk 01:28:51]} {[%emt 00:01:06]} 8. Ne5 {[%clk
01:17:52]} {[%emt 00:02:01]} Bxe2 {[%clk 01:27:41]} {[%emt 00:01:40]} 9. Qxe2
{[%clk 01:16:49]} {[%emt 00:01:28]} Bd6 {[%clk 01:23:34]} {[%emt 00:04:42]} 10.
Nc4 {[%clk 01:12:29]} {[%emt 00:04:50]} Qc7 {[%clk 01:21:42]} {[%emt 00:02:07]}
11. Nxd6+ {[%clk 01:05:46]} {[%emt 00:06:59]} Qxd6 {[%clk 01:22:03]} {[%emt
00:00:38]} 12. Rd1 {[%clk 01:03:29]} {[%emt 00:02:47]} O-O {[%clk 01:20:52]}
{[%emt 00:01:41]} 13. Ne4 {[%clk 01:00:41]} {[%emt 00:03:17]} Nxe4 {[%clk
01:19:25]} {[%emt 00:01:58]} 14. Qxe4 {[%clk 01:00:54]} {[%emt 00:00:10]} Nd7
{[%clk 01:18:25]} {[%emt 00:01:36]} 15. Bg5 {[%clk 00:53:38]} {[%emt 00:07:46]}
Rfe8 {[%clk 01:14:45]} {[%emt 00:04:11]} 16. Rd3 {[%clk 00:49:30]} {[%emt
00:04:38]} Qd5 {[%clk 01:14:01]} {[%emt 00:01:14]} 17. Qg4 {[%clk 00:41:54]}
{[%emt 00:08:05]} Qf5 {[%clk 01:13:23]} {[%emt 00:01:09]} 18. Qh4 {[%clk
00:39:21]} {[%emt 00:03:03]} f6 {[%clk 01:13:04]} {[%emt 00:00:50]} 19. Bd2
{[%clk 00:38:25]} {[%emt 00:01:24]} Rad8 {[%clk 01:10:34]} {[%emt 00:03:00]} 20.
Rc1 {[%clk 00:36:00]} {[%emt 00:02:55]} Nf8 {[%clk 01:09:35]} {[%emt 00:01:30]}
21. Bc3 {[%clk 00:28:37]} {[%emt 00:07:52]} Rd5 {[%clk 01:08:37]} {[%emt
00:01:28]} 22. Re3 {[%clk 00:24:54]} {[%emt 00:04:13]} Qg5 {[%clk 01:07:35]}
{[%emt 00:01:33]} 23. Qh3 {[%clk 00:23:20]} {[%emt 00:02:03]} Qf5 {[%clk
01:02:29]} {[%emt 00:05:37]} 24. Qg3 {[%clk 00:21:46]} {[%emt 00:02:02]} Qg6
{[%clk 01:02:28]} {[%emt 00:00:33]} 25. Qc7 {[%clk 00:21:05]} {[%emt 00:01:10]}
Qf7 {[%clk 01:02:36]} {[%emt 00:00:23]} 26. Qg3 {[%emt 00:01:27]} 1/2-1/2

[Event "Klass I-IV 2025"]
[Site "Uppsala, Sweden"]
[Date "2025.07.04"]
[Round "5.4"]
[White "Viknander, Sandra"]
[Black "Svensson, Christina"]
[Result "0-1"]
[TimeControl "90 min for 40 move + 30 min with an increment of 30 sec starting move 1"]
[WhiteFideId "1793217"]
[BlackFideId "1767518"]
[WhiteElo "1489"]
[BlackElo "1543"]

1. e4 {[%clk 01:30:56]} {[%emt 00:00:03]} c5 {[%clk 01:30:52]} {[%emt
00:00:09]} 2. Nf3 {[%clk 01:31:19]} {[%emt 00:00:07]} e6 {[%clk 01:31:07]}
{[%emt 00:00:16]} 3. d4 {[%clk 01:31:38]} {[%emt 00:00:09]} cxd4 {[%clk
01:31:03]} {[%emt 00:00:34]} 4. Nxd4 {[%clk 01:31:35]} {[%emt 00:00:33]} Nc6
{[%clk 01:29:28]} {[%emt 00:02:06]} 5. Nc3 {[%clk 01:31:19]} {[%emt 00:00:45]}
a6 {[%emt 00:03:37]} 6. Be3 {[%clk 01:28:39]} {[%emt 00:00:31]} Nf6 {[%clk
01:26:21]} {[%emt 00:03:10]} 7. a3 {[%clk 01:24:34]} {[%emt 00:04:35]} Qc7
{[%clk 01:24:36]} {[%emt 00:02:15]} 8. Be2 {[%clk 01:15:19]} {[%emt 00:09:44]}
b5 {[%clk 01:19:19]} {[%emt 00:05:48]} 9. b4 {[%clk 01:11:55]} {[%emt
00:03:54]} Bb7 {[%clk 01:09:42]} {[%emt 00:10:07]} 10. O-O {[%clk 01:05:55]}
{[%emt 00:06:29]} Ne5 {[%clk 01:02:49]} {[%emt 00:07:22]} 11. Bf4 {[%clk
00:53:31]} {[%emt 00:12:55]} Nxe4 {[%clk 00:52:19]} {[%emt 00:11:01]} 12. Nxe4
{[%clk 00:50:36]} {[%emt 00:03:24]} Bxe4 {[%clk 00:52:36]} {[%emt 00:00:14]} 13.
Bxe5 {[%clk 00:49:34]} {[%emt 00:01:32]} Qxe5 {[%clk 00:51:52]} {[%emt
00:01:15]} 14. f4 {[%clk 00:44:15]} {[%emt 00:05:48]} Qc7 {[%clk 00:50:28]}
{[%emt 00:01:54]} 15. Bf3 {[%clk 00:40:53]} {[%emt 00:03:52]} Bxf3 {[%clk
00:50:12]} {[%emt 00:00:47]} 16. Qxf3 {[%clk 00:40:50]} {[%emt 00:00:32]} Rd8
{[%clk 00:49:22]} {[%emt 00:01:21]} 17. Qg3 {[%clk 00:38:02]} {[%emt 00:03:16]}
g6 {[%clk 00:43:34]} {[%emt 00:06:20]} 18. Rae1 {[%clk 00:32:40]} {[%emt
00:05:52]} Bg7 {[%clk 00:42:00]} {[%emt 00:02:04]} 19. Nf5 {[%clk 00:31:45]}
{[%emt 00:01:24]} Bf6 {[%clk 00:35:49]} {[%emt 00:06:41]} 20. Nh6 {[%clk
00:27:30]} {[%emt 00:04:45]} Qxc2 {[%clk 00:31:55]} {[%emt 00:04:23]} 21. Qf3
{[%clk 00:26:26]} {[%emt 00:01:33]} Kf8 {[%clk 00:29:05]} {[%emt 00:03:22]} 22.
Re5 {[%clk 00:26:23]} {[%emt 00:00:32]} Kg7 {[%clk 00:27:08]} {[%emt 00:02:28]}
23. Ng4 {[%clk 00:23:58]} {[%emt 00:02:55]} Bxe5 {[%clk 00:25:12]} {[%emt
00:02:26]} 24. fxe5 {[%clk 00:23:49]} {[%emt 00:00:40]} Qf5 {[%clk 00:24:56]}
{[%emt 00:00:45]} 25. Qh3 {[%clk 00:21:09]} {[%emt 00:03:09]} Qh5 {[%clk
00:20:30]} {[%emt 00:04:56]} 26. Qf3 {[%clk 00:21:30]} {[%emt 00:00:10]} Rhf8
{[%clk 00:19:57]} {[%emt 00:01:04]} 27. Qf6+ {[%clk 00:16:22]} {[%emt
00:05:37]} Kg8 {[%clk 00:19:47]} {[%emt 00:00:40]} 28. Nf2 {[%clk 00:16:03]}
{[%emt 00:00:48]} Qf5 {[%clk 00:19:15]} {[%emt 00:01:02]} 29. Qh4 {[%clk
00:12:24]} {[%emt 00:04:09]} Qxe5 {[%clk 00:17:23]} {[%emt 00:02:21]} 30. g4
{[%clk 00:11:54]} {[%emt 00:01:02]} d5 {[%clk 00:14:12]} {[%emt 00:03:41]} 31.
Qh6 {[%clk 00:11:47]} {[%emt 00:00:33]} Qg7 {[%clk 00:13:25]} {[%emt 00:01:21]}
32. Qh4 {[%clk 00:10:01]} {[%emt 00:02:16]} g5 {[%clk 00:10:03]} {[%emt
00:03:52]} 33. Qh5 {[%clk 00:08:46]} {[%emt 00:01:45]} Qg6 {[%clk 00:09:44]}
{[%emt 00:00:49]} 34. Qh3 {[%clk 00:08:46]} {[%emt 00:00:29]} d4 {[%clk
00:09:39]} {[%emt 00:00:36]} 35. Nd3 {[%clk 00:09:03]} {[%emt 00:00:13]} f6
{[%clk 00:09:37]} {[%emt 00:00:31]} 36. Nc5 {[%clk 00:07:27]} {[%emt 00:02:07]}
Rd6 {[%clk 00:08:43]} {[%emt 00:01:24]} 37. Qg3 {[%clk 00:06:16]} {[%emt
00:01:41]} e5 {[%clk 00:08:17]} {[%emt 00:00:56]} 38. Qf3 {[%clk 00:04:52]}
{[%emt 00:01:53]} h6 {[%clk 00:03:19]} {[%emt 00:05:29]} 39. Ne4 {[%clk
00:05:07]} {[%emt 00:00:15]} Re6 {[%clk 00:02:24]} {[%emt 00:01:25]} 40. Qb3
{[%clk 00:04:58]} {[%emt 00:00:38]} Qf7 {[%clk 00:30:21]} {[%emt 00:02:34]} 41.
Qd5 {[%clk 00:34:04]} {[%emt 00:01:24]} Kg7 {[%clk 00:29:26]} {[%emt 00:01:25]}
42. Rxf6 {[%clk 00:32:36]} {[%emt 00:01:57]} Rxf6 {[%clk 00:29:11]} {[%emt
00:00:45]} 43. Qxe5 {[%clk 00:30:52]} {[%emt 00:02:15]} Kg8 {[%clk 00:29:15]}
{[%emt 00:00:27]} 44. Qe7 {[%emt 00:02:08]} 0-1

[Event "Klass I-IV 2025"]
[Site "Uppsala, Sweden"]
[Date "2025.07.05"]
[Round "6.1"]
[White "Johansson, Roland"]
[Black "Kleimark, Anders"]
[Result "0-1"]
[TimeControl "90 min for 40 move + 30 min with an increment of 30 sec starting move 1"]
[WhiteFideId "1716123"]
[BlackFideId "1709968"]
[WhiteElo "1903"]
[BlackElo "1955"]

1. e4 {[%emt 19:13:22]} c5 {[%emt 00:00:09]} 2. Nf3 {[%emt 00:00:04]} d6 {[%emt
00:00:17]} 3. d4 {[%emt 00:00:05]} cxd4 {[%emt 00:00:09]} 4. Nxd4 {[%emt
00:00:04]} Nf6 {[%emt 00:00:14]} 5. Nc3 {[%emt 00:00:04]} a6 {[%emt 00:00:08]}
6. f4 {[%emt 00:00:05]} e5 {[%emt 00:00:07]} 7. Nf3 {[%emt 00:04:03]} Nbd7
{[%emt 00:00:18]} 8. Bd3 {[%emt 00:01:49]} b5 {[%emt 00:00:24]} 9. a3 {[%emt
00:01:48]} Bb7 {[%emt 00:05:02]} 10. O-O {[%emt 00:01:16]} Be7 {[%emt
00:03:05]} 11. Qe1 {[%emt 00:02:18]} O-O {[%emt 00:05:09]} 12. h3 {[%emt
00:02:50]} Re8 {[%emt 00:04:04]} 13. Be3 {[%emt 00:02:19]} a5 {[%emt 00:10:19]}
14. fxe5 {[%emt 00:06:51]} dxe5 {[%emt 00:01:43]} 15. Bxb5 {[%emt 00:02:59]}
Qc7 {[%emt 00:04:14]} 16. Rd1 {[%emt 00:12:03]} Red8 {[%emt 00:00:54]} 17. Bxd7
{[%emt 00:10:08]} Nxd7 {[%emt 00:00:48]} 18. Qf2 {[%emt 00:04:27]} Rdb8 {[%emt
00:05:20]} 19. Ng5 {[%emt 00:11:36]} Nf6 {[%emt 00:02:11]} 20. Bb6 {[%emt
00:08:33]} Qc4 {[%emt 00:04:14]} 21. Nd5 {[%emt 00:05:31]} Bxd5 {[%emt
00:00:33]} 22. exd5 {[%emt 00:00:11]} Rxb6 {[%emt 00:00:38]} 23. b3 {[%emt
00:02:35]} Qc5 {[%emt 00:01:03]} 24. d6 {[%emt 00:00:42]} Qxf2+ {[%emt
00:01:07]} 25. Rxf2 {[%emt 00:00:06]} Rxd6 {[%emt 00:00:26]} 26. Rxd6 {[%emt
00:00:18]} Bxd6 27. Rd2 {[%emt 00:00:12]} Bxa3 {[%emt 00:00:20]} 0-1

[Event "Klass I-IV 2025"]
[Site "Uppsala, Sweden"]
[Date "2025.07.05"]
[Round "6.2"]
[White "Walinder, Jonas"]
[Black "Johansson, Sigge"]
[Result "1/2-1/2"]
[TimeControl "90 min for 40 move + 30 min with an increment of 30 sec starting move 1"]
[WhiteFideId "1720546"]
[BlackFideId "1742612"]
[WhiteElo "1822"]
[BlackElo "1820"]

1. Nf3 {[%clk 01:30:53]} {[%emt 00:00:06]} c5 {[%clk 01:30:49]} {[%emt
00:00:11]} 2. c4 {[%clk 01:31:12]} {[%emt 00:00:12]} g6 {[%clk 01:31:03]}
{[%emt 00:00:15]} 3. g3 {[%clk 01:31:25]} {[%emt 00:00:17]} Bg7 {[%clk
01:31:22]} {[%emt 00:00:10]} 4. Bg2 {[%clk 01:31:25]} {[%emt 00:00:31]} Nc6
{[%clk 01:31:40]} {[%emt 00:00:12]} 5. O-O {[%clk 01:31:11]} {[%emt 00:00:44]}
e6 {[%clk 01:31:56]} {[%emt 00:00:13]} 6. e4 {[%clk 01:27:04]} {[%emt
00:04:38]} Nge7 {[%clk 01:31:54]} {[%emt 00:00:31]} 7. Nc3 {[%clk 01:27:06]}
{[%emt 00:00:29]} O-O {[%clk 01:32:14]} {[%emt 00:00:09]} 8. d3 {[%clk
01:26:06]} {[%emt 00:01:30]} d5 {[%clk 01:30:19]} {[%emt 00:02:25]} 9. exd5
{[%clk 01:23:31]} {[%emt 00:03:06]} exd5 {[%clk 01:29:44]} {[%emt 00:01:04]} 10.
Nxd5 {[%clk 01:23:09]} {[%emt 00:00:52]} Nxd5 {[%clk 01:29:52]} {[%emt
00:00:22]} 11. cxd5 {[%clk 01:23:31]} {[%emt 00:00:09]} Qxd5 {[%clk 01:30:16]}
{[%emt 00:00:04]} 12. Ng5 {[%clk 01:23:14]} {[%emt 00:00:48]} Qd8 {[%clk
01:27:48]} {[%emt 00:02:56]} 13. Ne4 {[%clk 01:21:09]} {[%emt 00:02:37]} Qa5
{[%clk 01:12:12]} {[%emt 00:16:07]} 14. Bd2 {[%clk 01:15:02]} {[%emt 00:06:37]}
Qb5 {[%clk 01:12:18]} {[%emt 00:00:24]} 15. Bc3 {[%clk 01:12:32]} {[%emt
00:02:59]} Nd4 {[%clk 01:11:32]} {[%emt 00:01:16]} 16. Nd6 {[%clk 01:08:50]}
{[%emt 00:04:11]} Qd7 {[%clk 01:10:18]} {[%emt 00:01:45]} 17. Nxc8 {[%clk
01:04:25]} {[%emt 00:04:54]} Raxc8 {[%clk 01:04:52]} {[%emt 00:05:56]} 18. Re1
{[%clk 00:50:01]} {[%emt 00:14:55]} b6 {[%clk 01:04:03]} {[%emt 00:01:20]} 19.
Rb1 {[%clk 00:48:30]} {[%emt 00:01:59]} Rfe8 {[%clk 01:03:20]} {[%emt
00:01:14]} 20. Qd2 {[%clk 00:47:12]} {[%emt 00:01:48]} Re6 {[%clk 00:58:41]}
{[%emt 00:05:09]} 21. Bxd4 {[%clk 00:40:55]} {[%emt 00:06:48]} Bxd4 {[%clk
00:57:46]} {[%emt 00:01:25]} 22. Re4 {[%clk 00:32:07]} {[%emt 00:09:17]} Rce8
{[%clk 00:55:30]} {[%emt 00:02:46]} 23. Rbe1 {[%clk 00:31:37]} {[%emt
00:01:00]} f5 {[%clk 00:55:26]} {[%emt 00:00:34]} 24. Rxe6 {[%clk 00:30:05]}
{[%emt 00:02:03]} Rxe6 {[%clk 00:55:44]} {[%emt 00:00:11]} 25. Rxe6 {[%clk
00:30:28]} {[%emt 00:00:07]} Qxe6 {[%clk 00:56:09]} {[%emt 00:00:04]} 26. b3
{[%clk 00:30:14]} {[%emt 00:00:45]} 1/2-1/2

[Event "Klass I-IV 2025"]
[Site "Uppsala, Sweden"]
[Date "2025.07.05"]
[Round "6.3"]
[White "Johansson, Stina"]
[Black "Lindblad, Vigor"]
[Result "0-1"]
[TimeControl "90 min for 40 move + 30 min with an increment of 30 sec starting move 1"]
[WhiteFideId "1739026"]
[BlackFideId "1752910"]
[WhiteElo "1719"]
[BlackElo "1735"]

1. e4 {[%clk 01:30:57]} {[%emt 00:00:02]} c5 {[%clk 01:30:36]} {[%emt
00:00:25]} 2. Nf3 {[%clk 01:31:16]} {[%emt 00:00:10]} Nc6 {[%clk 01:30:41]}
{[%emt 00:00:25]} 3. d4 {[%clk 01:31:32]} {[%emt 00:00:14]} cxd4 {[%clk
01:30:57]} {[%emt 00:00:16]} 4. Nxd4 {[%clk 01:31:52]} {[%emt 00:00:08]} g6
{[%clk 01:31:17]} {[%emt 00:00:11]} 5. c3 {[%clk 01:26:37]} {[%emt 00:05:45]}
Bg7 {[%clk 01:31:29]} {[%emt 00:00:17]} 6. Be3 {[%clk 01:24:49]} {[%emt
00:02:18]} Nf6 {[%clk 01:31:43]} {[%emt 00:00:15]} 7. Bd3 {[%clk 01:20:09]}
{[%emt 00:05:10]} O-O {[%clk 01:31:28]} {[%emt 00:00:45]} 8. O-O {[%clk
01:20:07]} {[%emt 00:00:32]} d5 {[%clk 01:31:29]} {[%emt 00:00:29]} 9. Nxc6
{[%clk 01:14:55]} {[%emt 00:05:43]} bxc6 {[%clk 01:31:40]} {[%emt 00:00:18]} 10.
Nd2 {[%clk 01:14:08]} {[%emt 00:01:18]} Rb8 {[%clk 01:17:53]} {[%emt 00:14:17]}
11. Rb1 {[%clk 01:09:58]} {[%emt 00:04:40]} Qc7 {[%clk 01:17:14]} {[%emt
00:01:09]} 12. h3 {[%clk 01:08:58]} {[%emt 00:01:29]} Rd8 {[%clk 01:09:06]}
{[%emt 00:08:38]} 13. Qc2 {[%clk 01:04:17]} {[%emt 00:05:10]} e5 {[%clk
01:05:04]} {[%emt 00:04:31]} 14. Nb3 {[%clk 00:59:46]} {[%emt 00:05:02]} dxe4
{[%clk 00:59:46]} {[%emt 00:05:49]} 15. Bc4 {[%clk 00:54:12]} {[%emt 00:06:04]}
Nd5 {[%clk 00:52:17]} {[%emt 00:07:59]} 16. Rbd1 {[%clk 00:49:18]} {[%emt
00:05:23]} Be6 {[%clk 00:39:36]} {[%emt 00:13:11]} 17. Nc5 {[%clk 00:40:30]}
{[%emt 00:09:19]} Nxe3 {[%clk 00:32:23]} {[%emt 00:07:42]} 18. Nxe6 {[%clk
00:34:43]} {[%emt 00:06:17]} Rxd1 {[%clk 00:25:46]} {[%emt 00:07:07]} 19. Rxd1
{[%clk 00:32:31]} {[%emt 00:02:42]} Nxc2 {[%clk 00:21:30]} {[%emt 00:04:47]} 20.
Nxc7 {[%clk 00:32:49]} {[%emt 00:00:11]} e3 {[%clk 00:09:17]} {[%emt 00:12:43]}
21. Kf1 {[%clk 00:27:16]} {[%emt 00:06:04]} Rxb2 {[%clk 00:07:51]} {[%emt
00:01:55]} 22. Rd7 {[%clk 00:23:36]} {[%emt 00:04:10]} e2+ {[%clk 00:03:23]}
{[%emt 00:04:59]} 23. Bxe2 {[%clk 00:22:49]} {[%emt 00:01:17]} Rb1+ {[%clk
00:02:38]} {[%emt 00:01:15]} 24. Bd1 {[%clk 00:22:28]} {[%emt 00:00:51]} Nd4
{[%clk 00:01:58]} {[%emt 00:01:10]} 25. Ke1 {[%clk 00:19:16]} {[%emt 00:03:41]}
Nb5 {[%clk 00:02:12]} {[%emt 00:00:16]} 26. Kd2 {[%clk 00:14:12]} {[%emt
00:05:34]} Bh6+ {[%clk 00:01:56]} {[%emt 00:00:46]} 27. Ke1 {[%clk 00:11:21]}
{[%emt 00:03:21]} Nxc3 {[%clk 00:02:03]} {[%emt 00:00:23]} 28. Ne8 {[%clk
00:10:16]} {[%emt 00:01:36]} Rxd1+ {[%clk 00:01:50]} {[%emt 00:00:42]} 29. Rxd1
{[%clk 00:10:42]} {[%emt 00:00:04]} Nxd1 {[%clk 00:02:13]} {[%emt 00:00:07]} 30.
Kxd1 {[%clk 00:11:07]} {[%emt 00:00:05]} Bf8 {[%clk 00:01:55]} {[%emt
00:00:48]} 31. Nf6+ {[%clk 00:10:48]} {[%emt 00:00:49]} Kg7 {[%clk 00:02:23]}
{[%emt 00:00:03]} 32. Ng4 {[%clk 00:11:03]} {[%emt 00:00:15]} Bd6 {[%clk
00:02:21]} {[%emt 00:00:32]} 33. Ke2 {[%clk 00:11:11]} {[%emt 00:00:22]} f5
{[%clk 00:02:39]} {[%emt 00:00:12]} 34. Ne3 {[%clk 00:11:13]} {[%emt 00:00:28]}
Kf6 {[%clk 00:02:49]} {[%emt 00:00:20]} 35. Kd3 {[%clk 00:11:20]} {[%emt
00:00:23]} Bc5 {[%clk 00:02:38]} {[%emt 00:00:40]} 36. Nd1 {[%clk 00:11:28]}
{[%emt 00:00:22]} Bd4 {[%clk 00:02:34]} {[%emt 00:00:33]} 37. f3 {[%clk
00:10:57]} {[%emt 00:01:01]} h5 {[%clk 00:02:38]} {[%emt 00:00:26]} 38. a4
{[%clk 00:10:38]} {[%emt 00:00:49]} h4 {[%clk 00:02:15]} {[%emt 00:00:53]} 39.
a5 {[%clk 00:09:42]} {[%emt 00:01:27]} Kg5 {[%clk 00:02:22]} {[%emt 00:00:23]}
40. a6 {[%clk 00:09:13]} {[%emt 00:00:58]} Kf4 {[%clk 00:02:23]} {[%emt
00:00:30]} 41. Ke2 {[%clk 00:09:26]} {[%emt 00:00:17]} c5 {[%clk 00:02:45]}
{[%emt 00:00:08]} 42. Kd3 {[%clk 00:03:14]} {[%emt 00:06:42]} Kg3 {[%clk
00:02:39]} {[%emt 00:00:36]} 43. Kc4 {[%clk 00:02:36]} {[%emt 00:01:09]} Kxg2
{[%clk 00:02:46]} {[%emt 00:00:22]} 44. Kb5 {[%clk 00:02:49]} {[%emt 00:00:17]}
Kxh3 {[%clk 00:02:19]} {[%emt 00:00:56]} 45. Kc6 {[%clk 00:03:06]} {[%emt
00:00:13]} Kg3 {[%clk 00:02:21]} {[%emt 00:00:28]} 46. Kb7 {[%clk 00:03:21]}
{[%emt 00:00:15]} c4 {[%clk 00:02:45]} {[%emt 00:00:06]} 47. Nc3 {[%clk
00:03:04]} {[%emt 00:00:47]} Bxc3 {[%clk 00:03:07]} {[%emt 00:00:08]} 48. Kxa7
{[%clk 00:03:29]} {[%emt 00:00:05]} h3 {[%clk 00:03:25]} {[%emt 00:00:13]} 49.
Kb7 {[%clk 00:03:51]} {[%emt 00:00:08]} Bd4 {[%clk 00:03:45]} {[%emt 00:00:09]}
50. a7 {[%clk 00:03:52]} {[%emt 00:00:30]} Bxa7 {[%clk 00:04:09]} {[%emt
00:00:06]} 51. Kxa7 {[%clk 00:04:16]} {[%emt 00:00:06]} h2 {[%clk 00:04:33]}
{[%emt 00:00:06]} 52. Kb6 {[%clk 00:04:41]} {[%emt 00:00:04]} h1=Q {[%clk
00:04:43]} {[%emt 00:00:19]} 53. Kc5 {[%clk 00:05:07]} {[%emt 00:00:05]} Qd1
{[%clk 00:05:00]} {[%emt 00:00:13]} 54. Kxc4 {[%clk 00:05:29]} {[%emt
00:00:08]} Qd4+ {[%clk 00:05:05]} {[%emt 00:00:24]} 55. Kb5 {[%clk 00:05:44]}
{[%emt 00:00:17]} Qc3 {[%clk 00:05:24]} {[%emt 00:00:11]} 56. Kb6 {[%clk
00:06:01]} {[%emt 00:00:13]} Kxf3 {[%clk 00:05:45]} {[%emt 00:00:08]} 57. Kb5
{[%clk 00:06:22]} {[%emt 00:00:10]} e4 {[%clk 00:05:43]} {[%emt 00:00:31]} 58.
Kb6 {[%clk 00:06:42]} {[%emt 00:00:11]} e3 {[%clk 00:06:05]} {[%emt 00:00:07]}
59. Kb5 {[%clk 00:07:04]} {[%emt 00:00:09]} e2 {[%clk 00:06:29]} {[%emt
00:00:05]} 60. Kb6 {[%clk 00:07:31]} {[%emt 00:00:04]} e1=Q {[%clk 00:06:47]}
{[%emt 00:00:12]} 61. Kb5 {[%clk 00:07:53]} {[%emt 00:00:08]} Qb1+ {[%clk
00:07:02]} {[%emt 00:00:15]} 62. Ka4 {[%clk 00:08:17]} {[%emt 00:00:06]} Qca1#
{[%clk 00:07:23]} {[%emt 00:00:07]} 0-1

[Event "Klass I-IV 2025"]
[Site "Uppsala, Sweden"]
[Date "2025.07.06"]
[Round "7.1"]
[White "Palmblad, Jan Peter"]
[Black "Holmgren, Peter"]
[Result "1-0"]
[TimeControl "90 min for 40 move + 30 min with an increment of 30 sec starting move 1"]
[WhiteFideId "1705512"]
[BlackFideId "1713906"]
[WhiteElo "1943"]
[BlackElo "1925"]

1. e4 {[%emt 00:02:24]} e5 {[%emt 00:00:06]} 2. Nf3 {[%emt 00:00:08]} Nc6
{[%emt 00:00:14]} 3. d4 {[%emt 00:00:08]} exd4 {[%emt 00:00:35]} 4. Nxd4 {[%emt
00:00:45]} Nxd4 {[%emt 00:08:01]} 5. Qxd4 {[%emt 00:03:43]} Qf6 {[%emt
00:00:57]} 6. Qc4 {[%emt 00:02:32]} c6 {[%emt 00:04:09]} 7. Nc3 {[%emt
00:01:36]} d6 {[%emt 00:00:48]} 8. Be3 {[%emt 00:01:52]} Qg6 {[%emt 00:07:23]}
9. O-O-O {[%emt 00:03:01]} Nf6 {[%emt 00:01:29]} 10. h3 {[%emt 00:06:17]} Nd7
{[%emt 00:06:24]} 11. f4 {[%emt 00:04:33]} Nb6 {[%emt 00:04:27]} 12. Qe2 {[%emt
00:04:13]} f5 {[%emt 00:01:50]} 13. exf5 {[%emt 00:00:59]} 1-0